fUSD/lending_fUSD_20250530
["ID","MTS","AMOUNT","RATE_DAILY","PERIOD"]
[363062922,1748563853625,-582.32,0.00022191,2]
[363062924,1748563853635,-420.0,0.00022191,2]
[363062926,1748563853644,-420.0,0.00022191,2]
[363062928,1748563853653,-699.93,0.00022191,2]
[363062929,1748563853662,-420.0,0.00022191,2]
[363062931,1748563853671,-420.0,0.00022191,2]
[363062933,1748563853681,-420.0,0.00022191,2]
[363062936,1748563853690,-420.0,0.00022191,2]
[363062937,1748563853700,-420.0,0.00022191,2]
[363062940,1748563853709,-821.22,0.00022191,2]
[363062941,1748563853718,-420.0,0.00022191,2]
[363062943,1748563853727,-420.0,0.00022191,2]
[363062946,1748563853737,-420.0,0.00022191,2]
[363062947,1748563853746,-420.0,0.00022191,2]
[363062950,1748563853755,-420.0,0.00022191,2]
[363062951,1748563853765,-420.0,0.00022191,2]
[363062954,1748563853774,-1777.15,0.00022191,2]
[363062955,1748563853783,-420.0,0.00022191,2]
[363062957,1748563853796,-1461.54,0.00022191,2]
[363062960,1748563853806,-420.0,0.00022191,2]
[363062961,1748563853815,-1325.67,0.00022191,2]
[363062964,1748563853826,-420.0,0.00022191,2]
[363062966,1748563853836,-420.0,0.00022191,2]
[363062967,1748563853845,-420.0,0.00022191,2]
[363062969,1748563853854,-420.0,0.00022191,2]
[363062971,1748563853863,-1657.45,0.00022191,2]
[363062974,1748563853876,-204.1888269,0.00022191,2]
[363062975,1748563853886,-724.1,0.00022191,2]
[363062978,1748563853896,-1009.68,0.00022191,2]
[363062979,1748563853905,-156.582472,0.00022191,2]
[363062980,1748563853914,-420.0,0.00022191,2]
[363062981,1748563853923,-811.89,0.00022191,2]
[363062982,1748563853933,-420.0,0.00022191,2]
[363062983,1748563853942,-420.0,0.00022191,2]
[363062984,1748563853951,-542.34,0.00022191,2]
[363062985,1748563853962,-425.62,0.00022191,2]
[363062986,1748563853971,-515.73753897,0.00022191,2]
[363062987,1748563853980,-236.77329193,0.00022191,2]
[363062988,1748563853989,-476.43,0.00022191,2]
[363062989,1748563853998,-1157.6,0.00022191,2]
[363062990,1748563854007,-420.0,0.00022191,2]
[363062991,1748563854017,-538.82,0.00022191,2]
[363062992,1748563854027,-420.0,0.00022191,2]
[363062993,1748563854036,-420.0,0.00022191,2]
[363062994,1748563854047,-489.22,0.00022191,2]
[363062995,1748563854057,-1029.25,0.00022191,2]
[363062996,1748563854067,-420.0,0.00022191,2]
[363062997,1748563854078,-984.89,0.00022191,2]
[363062998,1748563854087,-473.7899379,0.00022191,2]
[363062999,1748563854096,-420.0,0.00022191,2]
[363063000,1748563854105,-420.0,0.00022191,2]
[363063001,1748563854115,-959.15,0.00022191,2]
[363063002,1748563854124,-457.70667437,0.00022191,2]
[363063003,1748563854134,-420.0,0.00022191,2]
[363063004,1748563854143,-2171.13,0.00022191,2]
[363063005,1748563854152,-543.75536129,0.00022191,2]
[363063006,1748563854162,-541.09,0.00022191,2]
[363063007,1748563854171,-420.0,0.00022191,2]
[363063008,1748563854180,-541.73,0.00022191,2]
[363063009,1748563854190,-540.12,0.00022191,2]
[363063010,1748563854200,-420.0,0.00022191,2]
[363063011,1748563854209,-420.0,0.00022191,2]
[363063012,1748563854219,-420.0,0.00022191,2]
[363063013,1748563854228,-420.0,0.00022191,2]
[363063014,1748563854237,-420.0,0.00022191,2]
[363063015,1748563854247,-1483.12,0.00022191,2]
[363063016,1748563854256,-420.0,0.00022191,2]
[363063017,1748563854266,-493.96,0.00022191,2]
[363063018,1748563854275,-420.0,0.00022191,2]
[363063019,1748563854284,-1522.14,0.00022191,2]
[363063020,1748563854295,-420.0,0.00022191,2]
[363063022,1748563854304,-420.0,0.00022191,2]
[363063023,1748563854313,-420.0,0.00022191,2]
[363063024,1748563854323,-470.2,0.00022191,2]
[363063025,1748563854332,-166.42065056,0.00022191,2]
[363063026,1748563854341,-1543.13,0.00022191,2]
[363063027,1748563854350,-775.33,0.00022191,2]
[363063028,1748563854360,-420.0,0.00022191,2]
[363063029,1748563854370,-443.72,0.00022191,2]
[363063030,1748563854379,-420.0,0.00022191,2]
[363063032,1748563854389,-473.52,0.00022191,2]
[363063033,1748563854399,-420.0,0.00022191,2]
[363063034,1748563854408,-420.0,0.00022191,2]
[363063035,1748563854418,-531.69,0.00022191,2]
[363063036,1748563854427,-443.28568196,0.00022191,2]
[363063037,1748563854436,-625.47,0.00022191,2]
[363063038,1748563854446,-420.0,0.00022191,2]
[363063039,1748563854455,-493.34,0.00022191,2]
[363063040,1748563854464,-1057.8,0.00022191,2]
[363063041,1748563854473,-420.0,0.00022191,2]
[363063042,1748563854482,-420.0,0.00022191,2]
[363063043,1748563854491,-1879.99,0.00022191,2]
[363063044,1748563854500,-420.0,0.00022191,2]
[363063045,1748563854510,-1000.0,0.00022191,2]
[363063046,1748563854520,-934.57,0.00022191,2]
[363063047,1748563854530,-420.0,0.00022191,2]
[363063048,1748563854539,-324.65831259,0.00022191,2]
[363063049,1748563854548,-420.0,0.00022191,2]
[363063050,1748563854558,-1354.69,0.00022191,2]
[363063051,1748563854567,-420.0,0.00022191,2]
[363063052,1748563854582,-420.0,0.00022191,2]
[363063053,1748563854591,-420.0,0.00022191,2]
[363063054,1748563854601,-420.0,0.00022191,2]
[363063055,1748563854611,-423.94,0.00022191,2]
[363063056,1748563854620,-1805.0,0.00022191,2]
[363063057,1748563854630,-420.0,0.00022191,2]
[363063058,1748563854639,-11024.42,0.00022191,2]
[363063059,1748563854649,-1306.76,0.00022191,2]
[363063060,1748563854659,-420.0,0.00022191,2]
[363063061,1748563854668,-420.0,0.00022191,2]
[363063062,1748563854677,-420.0,0.00022191,2]
[363063063,1748563854687,-420.0,0.00022191,2]
[363063064,1748563854696,-2156.35,0.00022191,2]
[363063065,1748563854706,-2933.61,0.00022191,2]
[363063066,1748563854715,-420.0,0.00022191,2]
[363063067,1748563854725,-420.0,0.00022191,2]
[363063068,1748563854734,-612.89,0.00022191,2]
[363063069,1748563854743,-701.18,0.00022191,2]
[363063070,1748563854753,-482.59,0.00022191,2]
[363063071,1748563854763,-700.05,0.00022191,2]
[363063072,1748563854772,-1701.63,0.00022191,2]
[363063073,1748563854782,-420.0,0.00022191,2]
[363063074,1748563854794,-3084.15,0.00022191,2]
[363063075,1748563854804,-1198.08,0.00022191,2]
[363063076,1748563854813,-420.0,0.00022191,2]
[363063077,1748563854823,-1463.42,0.00022191,2]
[363063078,1748563854834,-783.33,0.00022191,2]
[363063079,1748563854843,-420.0,0.00022191,2]
[363063080,1748563854853,-2250.62,0.00022191,2]
[363063081,1748563854865,-420.0,0.00022191,2]
[363063082,1748563854875,-1180.33,0.00022191,2]
[363063083,1748563854885,-545.86,0.00022191,2]
[363063084,1748563854894,-420.0,0.00022191,2]
[363063085,1748563854904,-2305.43,0.00022191,2]
[363063087,1748563854914,-420.0,0.00022191,2]
[363063089,1748563854924,-1778.42,0.00022191,2]
[363063091,1748563854934,-420.0,0.00022191,2]
[363063093,1748563854943,-393.99941544,0.00022191,2]
[363063094,1748563854953,-420.0,0.00022191,2]
[363063097,1748563854963,-420.0,0.00022191,2]
[363063099,1748563854973,-420.0,0.00022191,2]
[363063101,1748563854983,-185.31199861,0.00022191,2]
[363063103,1748563854993,-420.0,0.00022191,2]
[363063105,1748563855003,-1021.51,0.00022191,2]
[363063107,1748563855012,-7064.55,0.00022191,2]
[363063109,1748563855022,-449.45,0.00022191,2]
[363063111,1748563855032,-420.0,0.00022191,2]
[363063112,1748563855042,-1666.03,0.00022191,2]
[363063113,1748563855052,-420.0,0.00022191,2]
[363063114,1748563855061,-420.0,0.00022191,2]
[363063115,1748563855071,-974.08,0.00022191,2]
[363063117,1748563855081,-420.0,0.00022191,2]
[363063119,1748563855091,-1360.36,0.00022191,2]
[363063121,1748563855101,-495.36,0.00022191,2]
[363063122,1748563855113,-420.0,0.00022191,2]
[363063123,1748563855123,-733.19,0.00022191,2]
[363063124,1748563855133,-420.0,0.00022191,2]
[363063125,1748563855143,-922.36,0.00022191,2]
[363063126,1748563855153,-600.68,0.00022191,2]
[363063127,1748563855163,-420.0,0.00022191,2]
[363063128,1748563855174,-3506.68,0.00022191,2]
[363063129,1748563855184,-420.0,0.00022191,2]
[363063130,1748563855194,-420.0,0.00022191,2]
[363063131,1748563855205,-420.0,0.00022191,2]
[363063132,1748563855215,-420.0,0.00022191,2]
[363063134,1748563855225,-420.0,0.00022191,2]
[363063136,1748563855235,-420.0,0.00022191,2]
[363063138,1748563855245,-955.23,0.00022191,2]
[363063141,1748563855255,-2151.23,0.00022191,2]
[363063143,1748563855267,-420.0,0.00022191,2]
[363063145,1748563855277,-420.0,0.00022191,2]
[363063147,1748563855287,-420.0,0.00022191,2]
[363063149,1748563855296,-578.08,0.00022191,2]
[363063151,1748563855306,-745.6,0.00022191,2]
[363063153,1748563855316,-420.0,0.00022191,2]
[363063155,1748563855326,-826.7,0.00022191,2]
[363063157,1748563855336,-420.0,0.00022191,2]
[363063159,1748563855346,-420.0,0.00022191,2]
[363063161,1748563855356,-420.0,0.00022191,2]
[363063163,1748563855366,-504.43091744,0.00022191,2]
[363063165,1748563855375,-420.0,0.00022191,2]
[363063167,1748563855386,-857.84,0.00022191,2]
[363063169,1748563855395,-420.0,0.00022191,2]
[363063171,1748563855405,-744.46,0.00022191,2]
[363063173,1748563855415,-420.0,0.00022191,2]
[363063175,1748563855425,-420.0,0.00022191,2]
[363063177,1748563855435,-14119.45,0.00022191,2]
[363063179,1748563855445,-1620.66,0.00022191,2]
[363063181,1748563855455,-420.0,0.00022191,2]
[363063184,1748563855465,-8796.18,0.00022191,2]
[363063186,1748563855475,-420.0,0.00022191,2]
[363063188,1748563855485,-1506.64,0.00022191,2]
[363063190,1748563855495,-420.0,0.00022191,2]
[363063192,1748563855504,-1484.47,0.00022191,2]
[363063194,1748563855515,-420.0,0.00022191,2]
[363063196,1748563855524,-420.0,0.00022191,2]
[363063198,1748563855534,-1072.77,0.00022191,2]
[363063199,1748563855543,-1361.85,0.00022191,2]
[363063200,1748563855553,-3118.13,0.00022191,2]
[363063201,1748563855562,-2167.51,0.00022191,2]
[363063202,1748563855572,-634.19,0.00022191,2]
[363063203,1748563855582,-420.0,0.00022191,2]
[363063204,1748563855593,-518.52172072,0.00022191,2]
[363063205,1748563855602,-1027.89,0.00022191,2]
[363063206,1748563855615,-420.0,0.00022191,2]
[363063207,1748563855625,-420.0,0.00022191,2]
[363063210,1748563855635,-420.0,0.00022191,2]
[363063212,1748563855645,-1880.77,0.00022191,2]
[363063214,1748563855656,-1518.44,0.00022191,2]
[363063216,1748563855666,-420.0,0.00022191,2]
[363063218,1748563855677,-1533.43,0.00022191,2]
[363063220,1748563855687,-420.0,0.00022191,2]
[363063222,1748563855696,-542.99,0.00022191,2]
[363063224,1748563855706,-435.76487929,0.00022191,2]
[363063226,1748563855716,-716.85,0.00022191,2]
[363063228,1748563855726,-420.0,0.00022191,2]
[363063230,1748563855736,-1592.03,0.00022191,2]
[363063232,1748563855747,-424.88510342,0.00022191,2]
[363063234,1748563855757,-6042.94,0.00022191,2]
[363063236,1748563855768,-737.53,0.00022191,2]
[363063238,1748563855778,-625.4,0.00022191,2]
[363063240,1748563855791,-2184.59,0.00022191,2]
[363063242,1748563855802,-781.11,0.00022191,2]
[363063245,1748563855813,-580.64,0.00022191,2]
[363063247,1748563855823,-1188.1,0.00022191,2]
[363063249,1748563855834,-420.0,0.00022191,2]
[363063251,1748563855844,-447.24,0.00022191,2]
[363063253,1748563855854,-1364.38,0.00022191,2]
[363063255,1748563855866,-4964.25,0.00022191,2]
[363063257,1748563855876,-420.0,0.00022191,2]
[363063259,1748563855887,-420.0,0.00022191,2]
[363063261,1748563855898,-167.27599651,0.00022191,2]
[363063263,1748563855912,-1054.07,0.00022191,2]
[363063265,1748563855923,-684.69,0.00022191,2]
[363063267,1748563855933,-3242.79,0.00022191,2]
[363063269,1748563855943,-204.09837694,0.00022191,2]
[363063272,1748563855954,-420.0,0.00022191,2]
[363063274,1748563855964,-420.0,0.00022191,2]
[363063276,1748563855975,-476.83,0.00022191,2]
[363063278,1748563855985,-847.7,0.00022191,2]
[363063280,1748563855995,-1184.37,0.00022191,2]
[363063282,1748563856005,-420.0,0.00022191,2]
[363063284,1748563856015,-420.0,0.00022191,2]
[363063286,1748563856025,-2134.72,0.00022191,2]
[363063288,1748563856035,-1430.16,0.00022191,2]
[363063290,1748563856045,-1788.79,0.00022191,2]
[363063292,1748563856063,-420.0,0.00022191,2]
[363063294,1748563856075,-420.0,0.00022191,2]
[363063296,1748563856086,-420.0,0.00022191,2]
[363063298,1748563856096,-420.0,0.00022191,2]
[363063300,1748563856106,-1942.52,0.00022191,2]
[363063303,1748563856116,-1147.66,0.00022191,2]
[363063305,1748563856126,-420.0,0.00022191,2]
[363063307,1748563856136,-454.91,0.00022191,2]
[363063309,1748563856146,-445.66,0.00022191,2]
[363063311,1748563856155,-420.0,0.00022191,2]
[363063313,1748563856165,-3434.52,0.00022191,2]
[363063315,1748563856175,-913.19,0.00022191,2]
[363063317,1748563856185,-420.0,0.00022191,2]
[363063319,1748563856196,-420.0,0.00022191,2]
[363063321,1748563856206,-682.15,0.00022191,2]
[363063323,1748563856216,-1022.79,0.00022191,2]
[363063325,1748563856226,-465.8,0.00022191,2]
[363063327,1748563856236,-420.0,0.00022191,2]
[363063329,1748563856246,-639.56,0.00022191,2]
[363063331,1748563856256,-865.16,0.00022191,2]
[363063333,1748563856266,-420.0,0.00022191,2]
[363063335,1748563856276,-420.0,0.00022191,2]
[363063338,1748563856286,-610.03,0.00022191,2]
[363063340,1748563856296,-985.45,0.00022191,2]
[363063342,1748563856306,-194.88997209,0.00022191,2]
[363063344,1748563856316,-420.0,0.00022191,2]
[363063346,1748563856327,-491.45,0.00022191,2]
[363063348,1748563856337,-420.0,0.00022191,2]
[363063350,1748563856347,-4578.83,0.00022191,2]
[363063352,1748563856356,-420.0,0.00022191,2]
[363063354,1748563856366,-1058.59,0.00022191,2]
[363063356,1748563856376,-986.04,0.00022191,2]
[363063358,1748563856386,-420.0,0.00022191,2]
[363063360,1748563856396,-1194.06,0.00022191,2]
[363063362,1748563856407,-420.0,0.00022191,2]
[363063365,1748563856417,-754.85,0.00022191,2]
[363063367,1748563856427,-420.0,0.00022191,2]
[363063369,1748563856437,-579.74,0.00022191,2]
[363063371,1748563856447,-4662.46,0.00022191,2]
[363063373,1748563856457,-235.19249595,0.00022191,2]
[363063375,1748563856467,-2804.13,0.00022191,2]
[363063377,1748563856477,-420.0,0.00022191,2]
[363063379,1748563856487,-761.81,0.00022191,2]
[363063381,1748563856497,-420.0,0.00022191,2]
[363063383,1748563856508,-549.89,0.00022191,2]
[363063385,1748563856518,-524.99,0.00022191,2]
[363063387,1748563856527,-1780.96,0.00022191,2]
[363063389,1748563856537,-420.0,0.00022191,2]
[363063391,1748563856547,-420.0,0.00022191,2]
[363063393,1748563856556,-5170.75,0.00022191,2]
[363063395,1748563856566,-1533.7,0.00022191,2]
[363063397,1748563856577,-1234.43,0.00022191,2]
[363063399,1748563856587,-420.0,0.00022191,2]
[363063401,1748563856597,-961.83,0.00022191,2]
[363063403,1748563856607,-1476.46,0.00022191,2]
[363063405,1748563856618,-553.47,0.00022191,2]
[363063407,1748563856628,-1210.54,0.00022191,2]
[363063410,1748563856638,-2921.91,0.00022191,2]
[363063412,1748563856649,-514.03,0.00022191,2]
[363063414,1748563856659,-1109.83,0.00022191,2]
[363063416,1748563856668,-2533.5,0.00022191,2]
[363063418,1748563856679,-420.0,0.00022191,2]
[363063420,1748563856689,-354.23189388,0.00022191,2]
[363063422,1748563856699,-526.12,0.00022191,2]
[363063424,1748563856709,-420.0,0.00022191,2]
[363063426,1748563856719,-564.09,0.00022191,2]
[363063428,1748563856729,-3790.39,0.00022191,2]
[363063430,1748563856739,-943.4,0.00022191,2]
[363063432,1748563856749,-6284.46,0.00022191,2]
[363063434,1748563856759,-420.0,0.00022191,2]
[363063437,1748563856770,-420.0,0.00022191,2]
[363063439,1748563856779,-701.81,0.00022191,2]
[363063441,1748563856789,-532.6,0.00022191,2]
[363063443,1748563856802,-420.0,0.00022191,2]
[363063445,1748563856811,-531.19,0.00022191,2]
[363063447,1748563856821,-420.0,0.00022191,2]
[363063449,1748563856832,-420.0,0.00022191,2]
[363063451,1748563856841,-582.84,0.00022191,2]
[363063453,1748563856851,-1237.65,0.00022191,2]
[363063455,1748563856861,-1440.34,0.00022191,2]
[363063457,1748563856873,-420.0,0.00022191,2]
[363063459,1748563856884,-570.82,0.00022191,2]
[363063461,1748563856894,-420.0,0.00022191,2]
[363063463,1748563856904,-1129.53,0.00022191,2]
[363063465,1748563856914,-644.79,0.00022191,2]
[363063467,1748563856924,-420.0,0.00022191,2]
[363063469,1748563856933,-150.053002,0.00022198,3]
[363063471,1748563856943,-200.0,0.00022218,2]
[363063473,1748563856953,-1313.0,0.00022261,2]
[363063475,1748563856963,-966.493,0.00022261,2]
[363063477,1748563856972,-1231.472775,0.00022284,3]
[363063480,1748563856982,-150.053002,0.00022298,3]
[363063482,1748563856992,-1750.34707661,0.00022304,2]
[363063483,1748563857003,-3279.47149474,0.00022304,2]
[363063484,1748563857013,-2709.9503,0.00022365,2]
[363063485,1748563857023,-150.053002,0.00022398,3]
[363063486,1748563857033,-150.0,0.000224,2]
[363063487,1748563857043,-767.0,0.000224,2]
[363063488,1748563857053,-237.0,0.000224,2]
[363063489,1748563857063,-375.0,0.000224,2]
[363063491,1748563857074,-200.0,0.00022421,2]
[363063492,1748563857083,-1750.34707661,0.00022426,2]
[363063494,1748563857094,-3279.47149474,0.00022426,2]
[363063497,1748563857104,-500.0,0.00022442,2]
[363063499,1748563857114,-500.0,0.00022442,2]
[363063501,1748563857124,-500.0,0.00022442,2]
[363063523,1748563857330,-500.0,0.00022442,2]
[363063525,1748563857341,-500.0,0.00022442,2]
[363063527,1748563857351,-500.0,0.00022442,2]
[363063529,1748563857361,-500.0,0.00022442,2]
[363063532,1748563857372,-500.0,0.00022442,2]
[363063534,1748563857381,-500.0,0.00022442,2]
[363063536,1748563857391,-500.0,0.00022442,2]
[363063537,1748563857400,-500.0,0.00022442,2]
[363063539,1748563857409,-500.0,0.00022442,2]
[363063542,1748563857419,-500.0,0.00022442,2]
[363063544,1748563857429,-500.0,0.00022442,2]
[363063546,1748563857439,-500.0,0.00022442,2]
[363063548,1748563857448,-500.0,0.00022442,2]
[363063550,1748563857458,-311.82769734,0.00022442,2]
[363063644,1748563858436,-188.17230266,0.00022442,2]
[363063646,1748563858445,-500.0,0.00022442,2]
[363063648,1748563858455,-157.64682706,0.00022442,2]
[363063949,1748563866730,-342.35317294,0.00022442,2]
[363063950,1748563866739,-467.45319215,0.00022442,2]
[363063951,1748563867388,-263.97438535,0.00021411,2]
[363063952,1748563868718,-36.02561465,0.00021411,2]
[363063953,1748563868728,-590.403,0.00021412,2]
[363063954,1748563868738,-4317.01,0.00021917,2]
[363063955,1748563868748,-420.0,0.00021917,2]
[363063956,1748563868757,-4317.01,0.00022191,2]
[363063957,1748563868767,-32.54680785,0.00022442,2]
[363063958,1748563868777,-500.0,0.00022442,2]
[363063959,1748563868787,-500.0,0.00022442,2]
[363063960,1748563868800,-500.0,0.00022442,2]
[363063961,1748563868810,-500.0,0.00022442,2]
[363063962,1748563868820,-500.0,0.00022442,2]
[363063963,1748563868831,-500.0,0.00022442,2]
[363063964,1748563868841,-500.0,0.00022442,2]
[363063965,1748563868851,-500.0,0.00022442,2]
[363063966,1748563868860,-500.0,0.00022442,2]
[363063967,1748563868873,-103.58389958,0.00022442,2]
[363063968,1748563869635,-396.41610042,0.00022442,2]
[363063969,1748563869645,-500.0,0.00022442,2]
[363063970,1748563869655,-500.0,0.00022442,2]
[363063971,1748563869664,-202.16082686,0.00022442,2]
[363063972,1748563869676,-297.83917314,0.00022442,2]
[363063973,1748563869685,-500.0,0.00022442,2]
[363063974,1748563869695,-500.0,0.00022442,2]
[363063975,1748563869705,-500.0,0.00022442,2]
[363063976,1748563869715,-500.0,0.00022442,2]
[363063977,1748563869724,-500.0,0.00022442,2]
[363063978,1748563869732,-500.0,0.00022442,2]
[363063979,1748563869740,-66.82624541,0.00022442,2]
[363063980,1748563869751,-433.17375459,0.00022442,2]
[363063981,1748563869760,-500.0,0.00022442,2]
[363063982,1748563869768,-500.0,0.00022442,2]
[363063983,1748563869778,-500.0,0.00022442,2]
[363063984,1748563869787,-500.0,0.00022442,2]
[363063985,1748563869799,-500.0,0.00022442,2]
[363063986,1748563869809,-500.0,0.00022442,2]
[363063987,1748563869818,-500.0,0.00022442,2]
[363063988,1748563869828,-500.0,0.00022442,2]
[363063989,1748563869839,-413.51009201,0.00022442,2]
[363063990,1748563869984,-0.01258358,0.00022442,2]
[363063991,1748563870888,-420.0,0.00021917,2]
[363063992,1748563870898,-432.40287234,0.00021917,2]
[363063993,1748563870908,-258.44807645,0.00021917,2]
[363063994,1748563870917,-420.0,0.00021917,2]
[363063995,1748563870927,-420.0,0.00022191,2]
[363063996,1748563870936,-86.47732441,0.00022442,2]
[363063997,1748563870946,-500.0,0.00022442,2]
[363063998,1748563870956,-500.0,0.00022442,2]
[363063999,1748563870966,-500.0,0.00022442,2]
[363064000,1748563870976,-500.0,0.00022442,2]
[363064001,1748563870985,-500.0,0.00022442,2]
[363064002,1748563870995,-500.0,0.00022442,2]
[363064003,1748563871004,-500.0,0.00022442,2]
[363064004,1748563871014,-500.0,0.00022442,2]
[363064005,1748563871024,-500.0,0.00022442,2]
[363064006,1748563871033,-500.0,0.00022442,2]
[363064007,1748563871043,-500.0,0.00022442,2]
[363064008,1748563871053,-500.0,0.00022442,2]
[363064009,1748563871063,-500.0,0.00022442,2]
[363064010,1748563871071,-500.0,0.00022442,2]
[363064011,1748563871080,-500.0,0.00022442,2]
[363064012,1748563871090,-500.0,0.00022442,2]
[363064013,1748563871099,-500.0,0.00022442,2]
[363064014,1748563871108,-500.0,0.00022442,2]
[363064015,1748563871117,-500.0,0.00022442,2]
[363064016,1748563871127,-500.0,0.00022442,2]
[363064017,1748563871137,-500.0,0.00022442,2]
[363064018,1748563871146,-500.0,0.00022442,2]
[363064019,1748563871157,-500.0,0.00022442,2]
[363064020,1748563871167,-500.0,0.00022442,2]
[363064021,1748563871177,-500.0,0.00022442,2]
[363064022,1748563871187,-500.0,0.00022442,2]
[363064023,1748563871197,-500.0,0.00022442,2]
[363064024,1748563871207,-500.0,0.00022442,2]
[363064025,1748563871217,-500.0,0.00022442,2]
[363064026,1748563871227,-500.0,0.00022442,2]
[363064027,1748563871237,-500.0,0.00022442,2]
[363064028,1748563871247,-500.0,0.00022442,2]
[363064029,1748563871257,-500.0,0.00022442,2]
[363064030,1748563871267,-500.0,0.00022442,2]
[363064031,1748563871277,-257.8717268,0.00022442,2]
[363064032,1748563871290,-242.1282732,0.00022442,2]
[363064033,1748563871300,-500.0,0.00022442,2]
[363064034,1748563871310,-500.0,0.00022442,2]
[363064035,1748563871319,-500.0,0.00022442,2]
[363064036,1748563871329,-500.0,0.00022442,2]
[363064037,1748563871340,-500.0,0.00022442,2]
[363064038,1748563871350,-500.0,0.00022442,2]
[363064039,1748563871359,-359.8717268,0.00022442,2]
[363064040,1748563871371,-140.1282732,0.00022442,2]
[363064041,1748563871380,-500.0,0.00022442,2]
[363064042,1748563871390,-500.0,0.00022442,2]
[363064043,1748563871399,-500.0,0.00022442,2]
[363064044,1748563871409,-500.0,0.00022442,2]
[363064045,1748563871418,-500.0,0.00022442,2]
[363064046,1748563871428,-500.0,0.00022442,2]
[363064047,1748563871437,-500.0,0.00022442,2]
[363064048,1748563871447,-500.0,0.00022442,2]
[363064049,1748563871457,-467.93979764,0.00022442,2]
[363064050,1748563871850,-32.06020236,0.00022442,2]
[363064051,1748563871859,-500.0,0.00022442,2]
[363064052,1748563871868,-500.0,0.00022442,2]
[363064053,1748563871880,-500.0,0.00022442,2]
[363064054,1748563871890,-500.0,0.00022442,2]
[363064055,1748563871900,-500.0,0.00022442,2]
[363064056,1748563871910,-500.0,0.00022442,2]
[363064057,1748563871919,-500.0,0.00022442,2]
[363064058,1748563871928,-500.0,0.00022442,2]
[363064059,1748563871938,-500.0,0.00022442,2]
[363064060,1748563871947,-500.0,0.00022442,2]
[363064061,1748563871957,-500.0,0.00022442,2]
[363064062,1748563871967,-500.0,0.00022442,2]
[363064063,1748563871977,-500.0,0.00022442,2]
[363064064,1748563871986,-703.0,0.00022442,2]
[363064065,1748563871995,-500.0,0.00022463,2]
[363064066,1748563872005,-596.22141438,0.00022463,2]
[363064067,1748563872015,-500.0,0.00022463,2]
[363064068,1748563872024,-500.0,0.00022463,2]
[363064069,1748563872033,-500.0,0.00022463,2]
[363064070,1748563872043,-500.0,0.00022463,2]
[363064071,1748563872052,-508.58,0.00022463,2]
[363064072,1748563872062,-300.0,0.00022464,2]
[363064073,1748563872072,-420.0,0.00022464,2]
[363064074,1748563872082,-420.0,0.00022464,2]
[363064075,1748563872092,-427.47024868,0.00022464,2]
[363064076,1748563872102,-420.0,0.00022464,2]
[363064077,1748563872111,-420.0,0.00022464,2]
[363064078,1748563872314,-503.17,0.00022464,2]
[363064079,1748563872326,-420.0,0.00022464,2]